bitfinex/quotes_SOLUSD_20260114
["timestamp","ask_amount","ask_price","bid_price","bid_amount"]
[1768349881385,16.06516556,144.91,144.84,9.18372072]
[1768349881610,16.06516556,144.91,144.85,0.72210109]
[1768349881826,9.1642456,144.91,144.85,0.72210109]
[1768349882109,0.70262597,144.9,144.85,0.72210109]
[1768349882291,8.46161963,144.91,144.86,6.90321689]
[1768349882492,8.46161963,144.91,144.86,19.46321689]
[1768349883011,8.46161963,144.91,144.86,20.18531798]
[1768349883211,7.60207306,144.94,144.88,0.72210109]
[1768349883505,16.06369269,144.94,144.88,0.72210109]
[1768349883888,0.70262597,144.94,144.88,0.72210109]
[1768349884095,8.46161963,144.95,144.9,0.72210109]
[1768349884293,15.36059693,144.95,144.9,13.28210109]
[1768349884493,16.0632229,144.95,144.9,13.28210109]
[1768349885222,8.46161963,144.94,144.89,12.56]
[1768349885406,0.67244862,144.93,144.89,12.56]
[1768349885613,9.13406825,144.93,144.89,12.56]
[1768349886615,9.13406825,144.92,144.87,19.46270768]
[1768349887110,6.89989114,144.93,144.88,7.59339001]
[1768349887111,15.36151077,144.93,144.88,7.59339001]
[1768349889105,16.03395939,144.93,144.88,0.6911755]
[1768349889301,16.03395939,144.93,144.87,19.46265177]
[1768349889302,8.46161963,144.92,144.87,19.46265177]
[1768349889500,16.03395939,144.93,144.87,20.15382727]
[1768349889723,0.67244862,144.92,144.87,7.59382727]
[1768349889933,9.13406825,144.92,144.87,19.46265177]
[1768349890107,9.13406825,144.92,144.88,6.9021958]
[1768349890307,0.67244862,144.92,144.88,6.9021958]
[1768349890804,8.46161963,144.93,144.88,7.5933713]
[1768349891007,9.13406825,144.94,144.89,0.6911755]
[1768349891207,0.67244862,144.97,144.9,0.6911755]
[1768349891415,9.13406825,144.97,144.92,0.6911755]
[1768349892208,16.03206996,144.97,144.92,0.6911755]
[1768349892806,9.13406825,144.95,144.91,12.56]
[1768349893123,24.14294894,144.97,144.91,13.2511755]
[1768349893331,8.46161963,144.95,144.91,13.2511755]
[1768349893818,8.46161963,144.95,144.91,0.6911755]
[1768349894522,9.13406825,144.95,144.9,19.46113704]
[1768349897030,9.13406825,144.94,144.9,6.90113704]
[1768349897230,9.13963692,144.93,144.87,9.15037828]
[1768349897412,5.89877164,144.93,144.88,12.56]
[1768349898424,5.89877164,144.93,144.88,19.46217982]
[1768349898925,0.67801729,144.93,144.89,6.90162683]
[1768349899507,0.67801729,144.92,144.88,19.46209842]
[1768349899707,0.67801729,144.92,144.88,6.90209842]
[1768349900306,0.67801729,144.92,144.87,6.90263079]
[1768349900503,0.67801729,144.91,144.88,6.90221456]
[1768349901205,0.67801729,144.91,144.8,204.97647266]
[1768349901206,0.67707548,144.89,144.82,1.14615135]
[1768349901426,5.89877164,144.89,144.83,0.68875865]
[1768349901612,5.89877164,144.91,144.85,0.68875865]
[1768349901807,5.89877164,144.91,144.85,13.24875865]
[1768349902308,12.12122337,144.92,144.87,0.68875865]
[1768349902623,6.89954974,144.94,144.89,0.68875865]
[1768349902929,0.67801729,144.95,144.89,0.68875865]
[1768349903117,0.67801729,144.97,144.9,5.909513]
[1768349903428,5.22075435,144.97,144.92,6.90035881]
[1768349903625,5.22075435,144.97,144.92,7.58911746]
[1768349903830,0.67801729,145.01,144.95,0.68875865]
[1768349904132,5.22075435,145.0,144.95,0.68875865]
[1768349904711,5.22075435,144.97,144.93,0.68875865]
[1768349904917,5.22075435,144.96,144.92,12.56]
[1768349905317,5.22075435,144.96,144.91,7.58944654]
[1768349905535,5.22075435,144.96,144.91,20.14944654]
[1768349907039,5.22075435,144.99,144.94,0.68875865]
[1768349907708,7.57379547,145.02,144.95,12.56]
[1768349907930,0.67801729,145.04,144.96,0.68875865]
[1768349908134,5.22075435,145.02,144.96,0.68875865]
[1768349908324,5.22075435,145.02,144.97,7.58673754]
[1768349908523,5.22075435,145.0,144.97,0.68875865]
[1768349908836,0.58476866,145.01,144.96,12.56]
[1768349909024,5.22075435,145.0,144.96,19.45835743]
[1768349909227,5.22075435,145.01,144.97,0.68875865]
[1768349910318,0.5856825,145.0,144.97,6.89759008]
[1768349910538,0.5856825,145.0,144.97,6.21552168]
[1768349911827,5.22075435,145.01,144.98,0.68875865]
[1768349912438,6.89529286,145.03,144.98,7.5862181]
[1768349912638,5.22075435,145.02,144.99,0.68875865]
[1768349913129,5.22075435,145.02,144.97,6.89779821]
[1768349913130,5.22075435,145.01,144.97,7.58655686]
[1768349913519,5.22075435,145.02,144.98,0.68875865]
[1768349913916,5.22075435,145.02,144.98,7.58624983]
[1768349914236,5.22075435,145.02,144.99,0.68875865]
[1768349914423,5.22075435,145.02,144.98,6.89749118]
[1768349914624,5.22075435,145.01,144.98,0.68875865]
[1768349915134,0.48181567,145.04,144.98,0.68875865]
[1768349915439,5.22075435,145.01,144.98,0.68875865]
[1768349915636,0.48181567,145.04,144.98,0.68875865]
[1768349915832,5.22075435,145.02,144.99,0.70210443]
[1768349916343,5.22075435,145.01,144.97,0.70210443]
[1768349916520,5.22075435,145.01,144.97,13.26210443]
[1768349916857,0.47431133,144.99,144.97,12.44862883]
[1768349917027,5.22075435,145.0,144.97,13.15073326]
[1768349917227,5.22075435,145.01,144.97,20.04867563]
[1768349917553,6.894745,145.04,144.98,0.70210443]
[1768349917733,5.22075435,145.02,144.98,0.70210443]
[1768349918452,5.22075435,145.02,144.98,7.59947576]
[1768349918855,5.22075435,145.02,144.98,20.15947576]
[1768349919235,6.89514029,145.03,144.99,0.70210443]
[1768349919440,2.04404158,145.02,144.99,0.70210443]
[1768349919933,8.93918187,145.03,144.99,0.70210443]
[1768349920130,2.04404158,145.11,144.99,0.70210443]
[1768349920131,3.9686435,145.1,145.02,0.70210443]
[1768349920328,3.9686435,145.1,145.01,2.04404158]
[1768349920329,9.13696457,145.08,145.03,12.56]
[1768349920735,0.51040111,145.07,145.03,12.56]
[1768349920955,2.75444269,145.08,145.03,12.56]
[1768349922223,2.75444269,145.08,145.03,19.45480709]
[1768349922426,0.6593545,145.06,145.01,0.70210443]
[1768349922640,2.04404158,145.02,144.98,0.70210443]
[1768349922843,2.04404158,145.0,144.98,0.70210443]
[1768349923346,5.21557152,145.0,144.98,0.70210443]
[1768349923849,0.65787986,145.04,144.98,0.70210443]
[1768349924040,5.21557152,145.0,144.98,0.70210443]
[1768349924355,6.89470324,145.04,144.99,0.70210443]
[1768349924645,5.21557152,145.03,144.99,0.70210443]
[1768349924850,5.21557152,145.04,144.99,0.70210443]
[1768349925438,0.65501803,144.99,144.92,0.70210443]
[1768349925647,5.21557152,144.96,144.92,0.70210443]
[1768349925853,5.21557152,144.94,144.9,0.70210443]
[1768349926154,5.21557152,144.97,144.92,0.70210443]
[1768349926356,5.21557152,144.96,144.92,0.70210443]
[1768349926946,5.21557152,144.97,144.92,0.70210443]
[1768349927252,0.51189064,144.96,144.9,30.07214688]
[1768349927434,5.21557152,144.98,144.92,0.70210443]
[1768349927639,5.21557152,144.98,144.94,0.70210443]
[1768349927846,0.6593545,144.97,144.93,12.56]
[1768349928049,0.06061255,144.96,144.93,12.56]
[1768349928359,0.06061255,144.96,144.95,0.70210443]
[1768349928853,6.89658238,145.0,144.95,0.70210443]
[1768349929159,5.21557152,144.99,144.95,0.70210443]
[1768349929452,5.21557152,144.98,144.95,0.70210443]
[1768349929646,5.21557152,144.98,144.93,20.16181297]
[1768349930033,5.21557152,144.97,144.92,6.90025145]
[1768349930233,12.11358333,144.97,144.92,6.90025145]
[1768349930437,12.11358333,144.97,144.92,7.60235588]
[1768349931244,5.21557152,144.97,144.92,7.60235588]
[1768349931439,6.8976255,144.98,144.93,0.70210443]
[1768349931656,12.11319702,144.98,144.93,0.70210443]
[1768349932264,12.11319702,144.98,144.93,7.60188081]
[1768349932463,12.11319702,144.98,144.94,0.70210443]
[1768349932464,5.21557152,144.98,144.94,0.70210443]
[1768349934250,5.21557152,144.98,144.94,7.60144051]
[1768349934451,5.21557152,144.99,144.95,0.70210443]
[1768349935353,5.21557152,144.98,144.95,0.70210443]
[1768349935682,5.21557152,144.99,144.95,0.70210443]
[1768349936344,5.21557152,144.99,144.95,7.60070142]
[1768349937942,5.78597905,144.99,144.95,6.89859699]
[1768349938663,5.21557152,144.99,144.95,7.60070142]
[1768349938872,7.46489381,145.05,144.98,0.70210443]
[1768349939057,5.21557152,145.04,145.0,0.70210443]
[1768349940471,12.1104388,145.04,145.0,0.70210443]
[1768349940769,5.21557152,145.03,144.99,12.56]
[1768349940971,5.21557152,145.04,145.0,7.59848887]
[1768349941559,5.21557152,145.03,145.0,0.70210443]
[1768349942665,5.21557152,145.02,144.97,0.70210443]
[1768349942867,5.21557152,145.0,144.97,0.70210443]
[1768349943262,5.78687452,145.0,144.95,0.70210443]
[1768349943459,5.87463957,144.99,144.95,12.56]
[1768349943873,5.87463957,144.99,144.95,19.45885269]
[1768349944567,24.13311946,145.03,144.95,20.16095712]
[1768349944774,5.21557152,145.0,144.95,13.26210443]
[1768349946464,5.21557152,145.0,144.95,20.16091257]
[1768349946862,12.11226613,145.0,144.95,7.60091257]
[1768349947171,12.7722207,145.0,144.95,20.16091257]
[1768349948279,12.7722207,145.0,144.93,22.46463922]
[1768349948280,5.21557152,144.98,144.94,6.89930508]
[1768349948860,5.21557152,144.98,144.93,20.12408183]
[1768349949386,7.46835319,144.99,144.93,20.12408183]
[1768349949566,12.68392471,144.99,144.94,0.66423342]
[1768349949950,5.78687452,144.99,144.94,0.66423342]
[1768349950155,0.571303,144.99,144.94,0.66423342]
[1768349950681,5.21557152,145.01,144.95,0.66423342]
[1768349950879,111.09525012,145.03,144.97,0.66423342]
[1768349951063,5.21557152,145.01,144.97,0.66423342]
[1768349951265,5.90425609,145.01,144.96,19.45845474]
[1768349951875,5.90425609,145.01,144.96,20.12268816]
[1768349952376,0.68868457,145.01,144.96,20.12268816]
[1768349952560,5.90425609,145.01,144.96,20.12268816]
[1768349953062,12.80049055,145.01,144.96,20.12268816]
[1768349954076,5.90425609,145.01,144.96,20.12268816]
[1768349954285,5.90425609,145.01,144.84,34.75200722]
[1768349954286,68.96076132,145.01,144.84,34.75200722]
[1768349954459,5.21557152,144.85,144.73,5.31557152]
[1768349954661,5.21557152,144.82,144.74,12.56]
[1768349954867,3.56055631,144.84,144.76,5.21557152]
[1768349954868,5.21557152,144.83,144.76,5.21557152]
[1768349955070,5.21557152,144.83,144.77,12.56]
[1768349955267,2.04968055,144.82,144.74,8.95850288]
[1768349955467,2.04968055,144.82,144.75,12.56]
[1768349955781,5.07969168,144.81,144.75,12.56]
[1768349955978,2.04968055,144.8,144.73,7.00934496]
[1768349956283,6.90655432,144.79,144.73,7.00934496]
[1768349956471,6.90655432,144.79,144.75,0.66423342]
[1768349958364,6.90655432,144.79,144.76,12.56]
[1768349958566,6.90655432,144.79,144.75,0.66423342]
[1768349958765,6.90655432,144.79,144.76,12.56]
[1768349959369,8.49956267,144.79,144.76,12.56]
[1768349961173,8.49956267,144.79,144.76,11.51335521]
[1768349961373,15.40623407,144.79,144.76,11.51335521]
[1768349963565,6.9066714,144.79,144.76,11.51335521]
[1768349964479,15.40623407,144.79,144.76,11.51335521]
[1768349965858,15.40623407,144.79,144.77,0.70791351]
[1768349965859,8.49956267,144.79,144.77,0.70791351]
[1768349966090,15.40576451,144.8,144.77,0.70791351]
[1768349966270,15.40576451,144.8,144.76,11.51335521]
[1768349966586,6.90620184,144.8,144.76,12.22126872]
[1768349966986,8.49956267,144.79,144.76,12.22126872]
[1768349967171,6.90620184,144.8,144.76,12.22126872]
[1768349967172,15.40576451,144.8,144.76,12.22126872]
[1768349968280,8.49956267,144.79,144.76,12.22126872]
[1768349968594,8.49956267,144.77,144.73,0.1]
[1768349968773,0.65304123,144.78,144.74,12.58]
[1768349968973,8.49956267,144.76,144.74,12.58]
[1768349969286,24.27039521,144.8,144.75,12.58]
[1768349969593,8.49956267,144.78,144.75,12.58]
[1768349969974,8.49956267,144.77,144.73,0.80791351]
[1768349970173,8.49956267,144.77,144.74,12.58]
[1768349970369,15.40715187,144.77,144.74,12.58]
[1768349972390,6.90703135,144.78,144.74,12.58]
[1768349972587,15.40659402,144.78,144.75,0.70791351]
[1768349972781,8.49956267,144.77,144.76,12.58]
[1768349973089,32.67417241,144.78,144.73,0.1]
[1768349973294,8.49956267,144.77,144.74,12.58]
[1768349974591,8.49956267,144.76,144.73,0.1]
[1768349974793,8.49956267,144.75,144.73,0.1]
[1768349974994,8.49956267,144.75,144.74,11.92036239]
[1768349975188,8.49956267,144.75,144.73,12.68]
[1768349975591,8.49956267,144.74,144.73,0.1]
[1768349975789,8.49956267,144.74,144.71,0.70791351]
[1768349975997,8.49956267,144.74,144.72,12.58]
[1768349976479,15.40909392,144.73,144.7,13.26002939]
[1768349977402,8.49956267,144.71,144.68,0.68002939]
[1768349977595,8.49956267,144.7,144.68,0.68002939]
[1768349977803,24.18307509,144.73,144.66,0.68002939]
[1768349977804,8.49956267,144.69,144.66,0.68002939]
[1768349977991,24.18307509,144.73,144.66,0.68002939]
[1768349978302,8.49956267,144.69,144.66,0.68002939]
[1768349978502,24.18307509,144.73,144.66,0.68002939]
[1768349978503,8.49956267,144.7,144.66,0.68002939]
[1768349978806,6.90941753,144.73,144.67,0.68002939]
[1768349979002,15.4089802,144.73,144.67,0.68002939]
[1768349979186,6.90941753,144.73,144.67,0.68002939]
[1768349979383,15.4089802,144.73,144.67,0.68002939]
[1768349980102,6.90941753,144.73,144.68,0.68002939]
[1768349980599,8.49956267,144.72,144.68,0.68002939]
[1768349980800,32.68252404,144.73,144.68,0.68002939]
[1768349982003,32.68252404,144.73,144.66,0.68002939]
[1768349982004,12.58,144.73,144.66,0.68002939]
[1768349982304,8.49956267,144.72,144.66,0.68002939]
[1768349983108,8.49956267,144.73,144.67,0.68002939]
[1768349983401,8.49956267,144.72,144.68,0.68002939]
[1768349983611,8.49956267,144.71,144.66,0.68002939]
[1768349983811,8.49956267,144.67,144.61,0.68002939]
[1768349983986,15.41232362,144.66,144.61,0.68002939]
[1768349984192,6.91276095,144.66,144.61,0.68002939]
[1768349984394,8.49956267,144.64,144.59,0.1]
[1768349984594,8.49956267,144.61,144.59,0.1]
[1768349984802,0.25811688,144.6,144.59,0.1]
[1768349985691,8.75767955,144.6,144.55,0.68002939]
[1768349985906,6.91658597,144.58,144.55,0.68002939]
[1768349986999,0.25811688,144.6,144.55,0.68002939]
[1768349987208,0.25811688,144.6,144.56,0.68002939]
[1768349987996,0.25811688,144.6,144.57,7.59709378]
[1768349989008,8.75767955,144.6,144.57,7.59709378]
[1768349989213,0.25811688,144.6,144.58,0.68002939]
[1768349989923,1e-08,144.6,144.59,0.68002939]
[1768349990512,8.49956267,144.64,144.6,0.68002939]
[1768349990717,8.49956267,144.63,144.6,13.26002939]
[1768349990911,24.19160556,144.68,144.6,13.26002939]
[1768349991088,8.49956267,144.63,144.6,13.26002939]
[1768349991415,24.19160556,144.68,144.6,13.26002939]
[1768349991590,8.49956267,144.63,144.6,13.26002939]
[1768349991786,6.6801107,144.67,144.62,0.68002939]
[1768349991991,8.49956267,144.65,144.62,0.68002939]
[1768349992220,8.49956267,144.66,144.63,13.26002939]
[1768349992428,8.49956267,144.65,144.63,13.26002939]
[1768349993117,8.49956267,144.65,144.63,12.6]
[1768349994014,6.91334221,144.65,144.59,6.91601913]
[1768349994220,8.49956267,144.64,144.6,12.6]
[1768349994408,0.66333405,144.64,144.61,12.6]
[1768349995106,8.49956267,144.64,144.62,12.6]
[1768349995616,8.49956267,144.64,144.59,6.91604403]
[1768349995810,8.49956267,144.64,144.6,12.6]
[1768349996007,6.91387441,144.64,144.61,0.68002939]
[1768349996337,15.41343708,144.64,144.61,0.68002939]
[1768349997093,15.41343708,144.64,144.61,12.6]
[1768349997900,8.49956267,144.63,144.6,12.6]
[1768349998104,8.49956267,144.63,144.59,0.68002939]
[1768349998398,8.49956267,144.63,144.6,12.6]
[1768349998824,8.49956267,144.63,144.59,0.68002939]
[1768349999125,8.49956267,144.63,144.6,12.6]
[1768349999896,4.29424348,144.7,144.61,0.68002939]
[1768350000212,4.29424348,144.7,144.65,0.68002939]
[1768350000530,4.29424348,144.7,144.64,8.49956267]
[1768350000531,4.29424348,144.7,144.67,0.68002939]
[1768350001109,3.56924348,144.7,144.69,0.68002939]
[1768350001308,8.49956267,144.74,144.69,0.68002939]
[1768350001521,9.17409499,144.75,144.7,12.6]
[1768350002027,16.082707,144.75,144.7,19.51074151]
[1768350002345,9.17409499,144.75,144.7,20.1907709]
[1768350002514,6.90786054,144.77,144.7,37.46789598]
[1768350002515,8.49956267,144.76,144.7,37.46789598]
[1768350002715,8.49956267,144.78,144.72,0.68002939]
[1768350002926,16.08080346,144.79,144.72,9.17959206]
[1768350003324,16.08080346,144.79,144.73,0.68002939]
[1768350003540,9.17409499,144.77,144.74,12.6]
[1768350005432,0.67453232,144.77,144.74,12.6]
[1768350005628,16.08160969,144.77,144.74,12.6]
[1768350005830,9.17282113,144.76,144.71,6.9103259]
[1768350006136,9.17282113,144.76,144.69,18.00285327]
[1768350006137,16.08121189,144.76,144.72,12.58]
[1768350006336,9.17282113,144.75,144.69,7.63610297]
[1768350006643,9.17282113,144.75,144.7,12.58]
[1768350007535,16.08156667,144.75,144.7,19.49081644]
[1768350007723,16.08156667,144.75,144.7,6.91081644]
[1768350007926,16.08156667,144.75,144.71,12.58]
[1768350008130,0.67325846,144.75,144.72,12.58]
[1768350008720,8.49956267,144.76,144.72,12.58]
[1768350008914,9.17282113,144.77,144.72,12.58]
[1768350009536,0.67325846,144.76,144.69,9.22451515]
[1768350009746,0.67325846,144.74,144.7,12.58]
[1768350011346,0.67325846,144.76,144.7,13.30495248]
[1768350011530,0.67325846,144.76,144.71,6.91037246]
[1768350011531,9.17282113,144.76,144.71,6.91037246]
[1768350011957,0.67325846,144.74,144.7,19.49076074]
[1768350012934,0.67325846,144.74,144.7,12.58]
[1768350013448,0.67325846,144.7,144.66,6.91274747]
[1768350013632,0.67325846,144.7,144.67,6.91223849]
[1768350014139,0.67325846,144.72,144.67,6.91223849]
[1768350014642,0.67325846,144.72,144.67,16.13675364]
[1768350015244,0.67325846,144.72,144.67,33.41746145]
[1768350015741,0.67325846,144.72,144.67,24.91789878]
[1768350015948,7.58225942,144.74,144.67,24.91789878]
[1768350016255,8.49956267,144.73,144.67,24.91789878]
[1768350016832,9.17282113,144.73,144.67,24.91789878]
[1768350017862,0.67325846,144.73,144.67,33.41746145]
[1768350019053,0.69804987,144.69,144.62,0.66990275]
[1768350019226,0.02522879,144.69,144.65,6.91295068]
[1768350019837,6.90989496,144.72,144.65,7.58285343]
[1768350020149,5.06130245,144.71,144.66,12.58]
[1768350020351,6.90989496,144.72,144.66,12.58]
[1768350020646,5.0619654,144.71,144.66,13.24990275]
[1768350020855,6.90989496,144.72,144.66,13.24990275]
[1768350021242,0.69804987,144.76,144.7,0.66990275]
[1768350021448,0.69804987,144.76,144.71,12.58]
[1768350021646,7.60603986,144.76,144.71,12.58]
[1768350021961,5.93604917,144.75,144.69,6.91132766]
[1768350022257,5.93604917,144.75,144.71,12.58]
[1768350022642,0.69804987,144.74,144.69,7.58123041]
[1768350022949,0.69804987,144.74,144.7,12.58]
[1768350024028,0.69804987,144.74,144.71,6.91037246]
[1768350024634,7.60699408,144.74,144.7,12.58]
[1768350024953,0.69804987,144.73,144.7,12.58]
[1768350025155,5.93604917,144.73,144.7,12.58]
[1768350025340,0.69804987,144.73,144.7,12.58]
[1768350025647,5.93604917,144.75,144.7,20.16046398]
[1768350026154,0.69804987,144.75,144.7,30.52702783]
[1768350026550,5.2379993,144.76,144.71,0.66990275]
[1768350027030,0.69804987,144.74,144.7,12.58]
[1768350027232,6.90810363,144.76,144.62,199.56004668]
[1768350027233,0.69804987,144.7,144.63,0.66990275]
[1768350027436,24.1780677,144.76,144.64,20.16334667]
[1768350027437,5.93604917,144.69,144.64,20.16334667]
[1768350027656,5.93604917,144.69,144.65,6.9129982]
[1768350028237,5.2379993,144.7,144.65,7.58290095]
[1768350028433,5.93604917,144.71,144.65,7.58290095]
[1768350028650,5.93604917,144.71,144.66,0.66990275]
[1768350029155,5.93604917,144.71,144.67,12.58]
[1768350029552,5.2379993,144.72,144.67,13.24990275]
[1768350029754,5.2379993,144.72,144.68,0.66990275]
[1768350030459,5.93604917,144.73,144.68,7.58133111]
[1768350030859,5.2379993,144.74,144.69,0.66990275]
[1768350031160,5.2379993,144.74,144.7,12.58]
[1768350031334,5.37536599,144.71,144.6,0.66990275]
[1768350031538,5.93044234,144.7,144.64,0.66990275]
[1768350031751,5.2379993,144.69,144.64,7.58333956]
[1768350031954,5.2379993,144.7,144.64,0.66990275]
[1768350032346,5.2379993,144.72,144.66,0.66990275]
[1768350032753,5.2379993,144.73,144.66,0.66990275]
[1768350033268,5.2379993,144.73,144.68,0.66990275]
[1768350033644,5.2379993,144.73,144.69,12.58]
[1768350034241,5.2379993,144.72,144.69,12.58]
[1768350034662,12.14789663,144.72,144.69,12.58]
[1768350035041,5.2379993,144.71,144.69,11.88056258]
[1768350035246,24.18463475,144.72,144.65,13.28915455]
[1768350035247,5.2379993,144.7,144.65,13.28915455]
[1768350035549,5.2379993,144.69,144.65,13.28915455]
[1768350035863,5.2379993,144.71,144.66,0.70915455]
[1768350036161,5.2379993,144.71,144.66,7.62161353]
[1768350036369,12.14839205,144.71,144.66,7.62161353]
[1768350036670,5.2379993,144.71,144.67,0.70915455]
[1768350036873,12.14837983,144.71,144.67,0.70915455]
[1768350038075,5.2379993,144.71,144.67,7.62141992]
[1768350039062,12.1483952,144.71,144.67,7.62141992]
[1768350039347,8.96324389,144.71,144.67,7.62141992]
[1768350039954,8.96324389,144.71,144.67,0.70915455]
[1768350040170,8.96324389,144.71,144.67,7.62139214]
[1768350040469,2.05284799,144.71,144.68,0.70915455]
[1768350040649,2.05284799,144.73,144.7,0.70915455]
[1768350041056,2.05284799,144.73,144.69,12.58]
[1768350041256,2.05284799,144.71,144.69,12.58]
[1768350041762,0.10649897,144.74,144.69,13.28915455]
[1768350041990,2.05284799,144.72,144.69,20.20025874]
[1768350042451,2.05284799,144.72,144.69,13.28915455]
[1768350043152,2.05284799,144.76,144.69,13.28915455]
[1768350043153,0.2,144.8,144.73,0.70915455]
[1768350043353,0.2,144.8,144.7,58.74222528]
[1768350043354,9.68817936,144.78,144.74,12.58]
[1768350043654,2.05284799,144.77,144.72,12.58]
[1768350044069,2.05284799,144.77,144.72,19.48956126]
[1768350044275,2.05284799,144.75,144.71,19.49017278]
[1768350044655,2.05284799,144.75,144.72,6.90980775]
[1768350044864,2.05284799,144.75,144.71,6.91028347]
[1768350045574,2.05284799,144.75,144.71,7.61943802]
[1768350045955,7.15650194,144.74,144.71,0.70915455]
[1768350046158,2.05284799,144.73,144.71,0.70915455]
[1768350046353,2.05284799,144.74,144.71,0.70915455]
[1768350047378,2.05284799,144.73,144.69,7.62035513]
[1768350049174,2.05284799,144.73,144.7,0.70915455]
[1768350049371,2.05284799,144.73,144.7,7.61996753]
[1768350050581,2.05284799,144.73,144.7,0.70915455]
[1768350051379,5.23542729,144.73,144.7,7.6199424]
[1768350052080,5.23542729,144.74,144.71,0.70915455]
[1768350053179,5.23542729,144.74,144.72,0.70915455]
[1768350053679,5.23542729,144.75,144.72,0.70915455]
[1768350053861,111.83026655,144.79,144.74,0.70915455]
[1768350054171,9.83468024,144.78,144.74,0.70915455]
[1768350054480,5.23542729,144.78,144.74,0.70915455]
[1768350054979,5.95908587,144.78,144.73,6.90941753]
[1768350056176,5.95908587,144.78,144.73,0.70915455]
[1768350057058,5.23542729,144.76,144.73,7.6183867]
[1768350057253,5.23542729,144.77,144.73,7.6183867]
[1768350057458,0.72365858,144.78,144.73,7.6183867]
[1768350057774,5.95908587,144.78,144.73,7.6183867]
[1768350058165,0.2,144.8,144.75,0.70915455]
[1768350058363,3.41865851,144.85,144.78,0.70915455]
[1768350058577,4.5974962,144.84,144.79,0.70915455]
[1768350058890,0.2,144.87,144.8,0.70915455]
[1768350058891,6.15908587,144.87,144.8,0.70915455]
[1768350059059,16.73676853,144.86,144.8,7.6148129]
[1768350059259,4.59801564,144.85,144.8,7.6148129]
[1768350059556,0.72365858,144.85,144.8,6.90565835]
[1768350059757,5.23542729,144.86,144.73,0.70915455]
[1768350059758,0.72365858,144.81,144.73,0.70915455]
[1768350059968,0.72365858,144.78,144.73,17.2731072]
[1768350060166,5.23542729,144.79,144.74,0.70915455]
[1768350060574,5.23542729,144.8,144.75,0.70915455]
[1768350061279,5.23542729,144.8,144.7,6.6801107]
[1768350061280,5.23542729,144.76,144.7,0.70915455]
[1768350061583,0.03542729,144.75,144.71,6.91025699]
[1768350061782,5.23542729,144.73,144.68,0.70915455]
[1768350062485,5.23542729,144.76,144.7,0.70915455]
[1768350062786,0.14743598,144.79,144.73,0.70915455]
[1768350063098,5.38286327,144.79,144.73,0.70915455]
[1768350063260,5.38286327,144.79,144.74,7.61809471]
[1768350064179,6.90618414,144.8,144.74,7.61809471]
[1768350064180,7.62935764,144.81,144.75,0.70915455]
[1768350064364,5.23542729,144.8,144.75,0.70915455]
[1768350064767,5.95908587,144.8,144.75,0.70915455]
[1768350065481,0.70469215,144.79,144.74,17.27235042]
[1768350065869,0.70469215,144.79,144.74,17.99296304]
[1768350067180,5.23542729,144.84,144.77,0.72061262]
[1768350067379,5.23542729,144.84,144.78,0.72061262]
[1768350067690,5.23542729,144.83,144.79,0.72061262]
[1768350067884,5.23542729,144.84,144.79,0.72061262]
[1768350068388,0.70469215,144.84,144.79,0.72061262]
[1768350068569,5.23542729,144.85,144.79,0.72061262]
[1768350068771,0.70469215,144.85,144.79,0.72061262]
[1768350069081,5.94011944,144.86,144.81,0.72061262]
[1768350069275,5.23542729,144.85,144.81,0.72061262]
[1768350069471,5.94011944,144.86,144.81,0.72061262]
[1768350070076,12.84350288,144.86,144.81,0.72061262]
[1768350070488,5.94011944,144.86,144.81,0.72061262]
[1768350070869,5.94011944,144.85,144.79,20.20701928]
[1768350071091,5.23542729,144.84,144.79,20.20701928]
[1768350071287,5.94011944,144.85,144.8,0.72061262]
[1768350071680,5.94011944,144.84,144.8,0.72061262]
[1768350071884,5.94011944,144.84,144.74,41.22481154]
[1768350071885,0.70469215,144.82,144.79,6.90648879]
[1768350072383,5.94011944,144.84,144.79,6.90648879]
[1768350072577,5.94011944,144.84,144.79,7.62710141]
[1768350072778,5.23542729,144.83,144.79,7.62710141]
[1768350073377,5.94011944,144.84,144.79,7.62710141]
[1768350073591,21.75314503,144.87,144.79,7.62710141]
[1768350073592,4.49558929,144.87,144.81,0.72061262]
[1768350073800,5.94011944,144.85,144.8,0.72061262]
[1768350074689,5.23542729,144.84,144.8,0.72061262]
[1768350075071,5.23542729,144.85,144.8,0.72061262]
[1768350075398,5.23542729,144.84,144.79,12.58]
[1768350075703,0.70469215,144.86,144.8,5.23542729]
[1768350075899,0.70469215,144.87,144.81,5.23542729]
[1768350076099,5.94011944,144.87,144.8,5.23542729]
[1768350076277,0.70469215,144.84,144.79,17.81542729]
[1768350076971,5.23542729,144.85,144.79,17.81542729]
[1768350077167,0.71726438,144.88,144.81,5.23542729]
[1768350077386,0.71726438,144.88,144.83,6.90464682]
[1768350077582,5.95269167,144.88,144.83,6.90464682]
[1768350077982,12.85499818,144.88,144.83,6.90464682]
[1768350078178,0.71726438,144.85,144.8,0.66446624]
[1768350078376,0.71726438,144.82,144.75,0.66446624]